fUST/lending_fUST_20251208
["ID","MTS","AMOUNT","RATE_DAILY","PERIOD"]
[397261016,1765160952640,-237.68351267,8.327e-05,2]
[397261017,1765160952661,-500.0,8.327e-05,2]
[397261018,1765160952680,-500.0,8.327e-05,2]
[397261019,1765160952700,-1205.45,8.327e-05,2]
[397261020,1765160952719,-500.0,8.327e-05,2]
[397261021,1765160952744,-500.0,8.327e-05,2]
[397261022,1765160952769,-572.82,8.327e-05,2]
[397261023,1765160952791,-500.0,8.327e-05,2]
[397261024,1765160952811,-718.86,8.327e-05,2]
[397261025,1765160952831,-500.0,8.327e-05,2]
[397261026,1765160952851,-500.0,8.327e-05,2]
[397261027,1765160952871,-1035.22,8.327e-05,2]
[397261028,1765160952890,-500.0,8.327e-05,2]
[397261029,1765160952910,-500.0,8.327e-05,2]
[397261030,1765160952930,-627.33,8.327e-05,2]
[397261031,1765160952952,-500.0,8.327e-05,2]
[397261032,1765160952972,-500.0,8.327e-05,2]
[397261033,1765160952991,-500.0,8.327e-05,2]
[397261034,1765160953012,-500.0,8.327e-05,2]
[397261035,1765160953032,-500.0,8.327e-05,2]
[397261036,1765160953052,-608.39,8.327e-05,2]
[397261037,1765160953071,-714.33,8.327e-05,2]
[397261038,1765160953090,-500.0,8.327e-05,2]
[397261039,1765160953108,-666.27,8.327e-05,2]
[397261040,1765160953131,-500.0,8.327e-05,2]
[397261041,1765160953150,-500.0,8.327e-05,2]
[397261042,1765160953170,-500.0,8.327e-05,2]
[397261043,1765160953189,-500.0,8.327e-05,2]
[397261044,1765160953210,-1203.36,8.327e-05,2]
[397261045,1765160953230,-500.0,8.327e-05,2]
[397261046,1765160953250,-500.0,8.327e-05,2]
[397261047,1765160953270,-500.0,8.327e-05,2]
[397261048,1765160953291,-500.0,8.327e-05,2]
[397261049,1765160953312,-500.0,8.327e-05,2]
[397261050,1765160953333,-500.0,8.327e-05,2]
[397261051,1765160953354,-500.0,8.327e-05,2]
[397261052,1765160953374,-500.0,8.327e-05,2]
[397261053,1765160953394,-500.0,8.327e-05,2]
[397261054,1765160953414,-500.0,8.327e-05,2]
[397261055,1765160953435,-1198.16,8.327e-05,2]
[397261056,1765160953710,-500.0,8.327e-05,2]
[397261057,1765160953734,-500.49822127,8.327e-05,2]
[397261058,1765160953756,-598.76,8.327e-05,2]
[397261059,1765160953775,-500.0,8.327e-05,2]
[397261060,1765160953795,-500.0,8.327e-05,2]
[397261061,1765160953813,-500.0,8.327e-05,2]
[397261062,1765160953832,-500.0,8.327e-05,2]
[397261063,1765160953854,-500.0,8.327e-05,2]
[397261064,1765160953876,-538.63,8.327e-05,2]
[397261065,1765160953898,-500.0,8.327e-05,2]
[397261066,1765160953918,-500.0,8.327e-05,2]
[397261067,1765160953939,-500.0,8.327e-05,2]
[397261068,1765160953960,-918.73,8.327e-05,2]
[397261069,1765160953980,-637.67144181,8.327e-05,2]
[397261070,1765160953999,-500.0,8.327e-05,2]
[397261071,1765160954018,-707.68,8.327e-05,2]
[397261072,1765160954038,-693.16,8.327e-05,2]
[397261073,1765160954058,-941.44,8.327e-05,2]
[397261074,1765160954078,-732.64,8.327e-05,2]
[397261075,1765160954103,-500.0,8.327e-05,2]
[397261076,1765160954138,-575.27692882,8.327e-05,2]
[397261077,1765160954162,-500.0,8.327e-05,2]
[397261078,1765160954183,-500.0,8.327e-05,2]
[397261079,1765160954205,-500.0,8.327e-05,2]
[397261080,1765160954228,-700.75,8.327e-05,2]
[397261081,1765160954252,-547.52451314,8.327e-05,2]
[397261082,1765160954273,-500.0,8.327e-05,2]
[397261083,1765160954294,-1117.55,8.327e-05,2]
[397261084,1765160954315,-600.21,8.327e-05,2]
[397261085,1765160954335,-500.0,8.327e-05,2]
[397261086,1765160954356,-666.26,8.327e-05,2]
[397261087,1765160954376,-500.0,8.327e-05,2]
[397261088,1765160954396,-2080.63,8.327e-05,2]
[397261089,1765160954415,-767.32,8.327e-05,2]
[397261090,1765160954434,-541.08,8.327e-05,2]
[397261091,1765160954454,-500.0,8.327e-05,2]
[397261092,1765160954472,-500.0,8.327e-05,2]
[397261093,1765160954492,-500.0,8.327e-05,2]
[397261094,1765160954512,-500.0,8.327e-05,2]
[397261095,1765160954532,-250.13256059,8.327e-05,2]
[397261135,1765161032794,-150.0,6.802e-05,2]
[397261136,1765161032804,-107.3066617,7.126e-05,2]
[397261137,1765161032816,-42.6933383,7.126e-05,2]
[397261138,1765161032825,-361.8475866,7.386e-05,2]
[397261139,1765161032835,-191.86,7.45e-05,2]
[397261140,1765161032845,-202.30376098,7.774e-05,2]
[397261141,1765161032859,-53.50623902,7.774e-05,2]
[397261142,1765161032870,-319.63782798,8.098e-05,2]
[397261156,1765161038540,-0.12217202,8.098e-05,2]
[397261158,1765161038550,-300.0,8.323e-05,2]
[397261160,1765161038560,-189.7508882,8.323e-05,2]
[397261162,1765161038570,-122.5839561,8.324e-05,2]
[397261165,1765161038587,-5427.4660439,8.324e-05,2]
[397261167,1765161038596,-3895.43,8.324e-05,2]
[397261169,1765161038607,-6086.62,8.324e-05,2]
[397261171,1765161038615,-588.44,8.324e-05,2]
[397261173,1765161038624,-612.06,8.324e-05,2]
[397261175,1765161038633,-891.19988979,8.324e-05,2]
[397261177,1765161038645,-74.11011021,8.324e-05,2]
[397261179,1765161038654,-219.0,8.324e-05,2]
[397261181,1765161038663,-500.0,8.324e-05,2]
[397261183,1765161038672,-500.0,8.324e-05,2]
[397261186,1765161038680,-276.04952543,8.324e-05,2]
[397261188,1765161038690,-1573.59,8.324e-05,2]
[397261189,1765161038699,-752.07,8.324e-05,2]
[397261192,1765161038708,-500.0,8.324e-05,2]
[397261194,1765161038717,-1113.71036436,8.324e-05,2]
[397261205,1765161038826,-70.91423227,8.324e-05,2]
[397261207,1765161038838,-434.73540337,8.324e-05,2]
[397261209,1765161038848,-1184.52777966,8.324e-05,2]
[397261413,1765161040766,-398.35222034,8.324e-05,2]
[397261415,1765161040779,-1393.03,8.324e-05,2]
[397261417,1765161040788,-500.0,8.324e-05,2]
[397261419,1765161040797,-3001.5,8.324e-05,2]
[397261421,1765161040806,-500.0,8.324e-05,2]
[397261423,1765161040816,-500.0,8.324e-05,2]
[397261425,1765161040825,-500.0,8.324e-05,2]
[397261427,1765161040834,-500.0,8.324e-05,2]
[397261429,1765161040848,-256.44287175,8.325e-05,2]
[397261431,1765161040859,-1800.41,8.325e-05,2]
[397261433,1765161040868,-1536.32,8.325e-05,2]
[397261435,1765161040878,-853.44,8.325e-05,2]
[397261437,1765161040887,-2049.61,8.325e-05,2]
[397261439,1765161040896,-500.0,8.325e-05,2]
[397261441,1765161040905,-500.0,8.325e-05,2]
[397261443,1765161040915,-500.0,8.325e-05,2]
[397261445,1765161040924,-1920.81,8.325e-05,2]
[397261447,1765161040933,-1067.05,8.325e-05,2]
[397261449,1765161040942,-2735.00848566,8.325e-05,2]
[397261717,1765161043717,-235.63295468,8.323e-05,2]
[397261721,1765161043727,-317.3569661,8.323e-05,2]
[397261724,1765161043736,-539.6,8.324e-05,2]
[397261726,1765161043746,-1906.33151434,8.325e-05,2]
[397261728,1765161043755,-1070.98,8.326e-05,2]
[397261730,1765161043764,-500.0,8.326e-05,2]
[397261732,1765161043777,-2536.44,8.326e-05,2]
[397261734,1765161043786,-1993.94,8.326e-05,2]
[397261736,1765161043795,-1302.19,8.326e-05,2]
[397261738,1765161043804,-1823.02,8.326e-05,2]
[397261740,1765161043813,-500.0,8.326e-05,2]
[397261742,1765161043822,-500.0,8.326e-05,2]
[397261744,1765161043831,-1025.66,8.326e-05,2]
[397261746,1765161043840,-651.93,8.326e-05,2]
[397261748,1765161043852,-500.0,8.326e-05,2]
[397261750,1765161043862,-1059.89,8.326e-05,2]
[397261752,1765161043871,-2294.41,8.326e-05,2]
[397261754,1765161043880,-2614.26,8.326e-05,2]
[397261756,1765161043889,-9308.87,8.326e-05,2]
[397261758,1765161043898,-500.0,8.326e-05,2]
[397261760,1765161043907,-494.34038486,8.326e-05,2]
[397261948,1765161046402,-500.0,8.324e-05,2]
[397261950,1765161046411,-366.38961514,8.326e-05,2]
[397261952,1765161046421,-500.0,8.326e-05,2]
[397261954,1765161046430,-612.34,8.326e-05,2]
[397261956,1765161046439,-1961.56363223,8.326e-05,2]
[397264294,1765161457924,1173.67473593,0.0001,3]
[397264296,1765161590405,1184.37515215,0.0001,3]
[397264299,1765161932091,-150.0,6.798e-05,2]
[397264300,1765161932111,-209.0,6.803e-05,2]
[397264301,1765161932132,-11.54700312,6.884e-05,2]
[397264302,1765161962940,171.32,5.1e-05,2]
[397264303,1765162025138,-150.0,6.798e-05,2]
[397264304,1765162025161,-63.99557494,6.801e-05,2]
[397264305,1765162049120,-206.25269164,6.801e-05,2]
[397264306,1765162049140,-266.7309092,7.007e-05,2]
[397264307,1765162049162,-146.61473048,7.122e-05,2]
[397264308,1765162051306,-3.38526952,7.122e-05,2]
[397264309,1765162051326,-219.81,7.446e-05,2]
[397264310,1765162051345,-300.0,7.512e-05,2]
[397264311,1765162051366,-300.0,7.512e-05,2]
[397264312,1765162051384,-791.93863296,7.512e-05,2]
[397265611,1765162143615,250.0,9.999e-05,3]
[397265639,1765162147226,-150.0,6.802e-05,2]
[397265640,1765162147248,-150.0,7.126e-05,2]
[397265641,1765162147269,-199.96,7.45e-05,2]
[397265643,1765162147288,-408.06136704,7.512e-05,2]
[397265644,1765162147308,-300.0,7.512e-05,2]
[397265645,1765162147329,-149.25779062,7.513e-05,2]
[397265694,1765162152117,-496.367393,7.513e-05,2]
[397265695,1765162152140,-1162.12533052,7.513e-05,2]
[397265696,1765162152159,-2063.934587,7.513e-05,2]
[397265697,1765162152181,-500.0,7.661e-05,2]
[397265698,1765162152201,-508.75532591,7.661e-05,2]
[397265699,1765162152222,-449.18199305,7.661e-05,2]
[397265700,1765162152243,-500.0,7.661e-05,2]
[397265701,1765162152264,-615.2471263,7.661e-05,2]
[397265702,1765162152285,-300.0,7.662e-05,2]
[397265704,1765162152306,-300.0,7.662e-05,2]
[397265705,1765162152326,-300.0,7.662e-05,2]
[397265706,1765162152346,-300.0,7.662e-05,2]
[397265707,1765162152368,-300.0,7.662e-05,2]
[397265708,1765162152389,-300.0,7.662e-05,2]
[397265709,1765162152409,-300.0,7.662e-05,2]
[397265711,1765162152430,-300.0,7.662e-05,2]
[397265712,1765162152451,-300.0,7.662e-05,2]
[397265713,1765162152471,-300.0,7.662e-05,2]
[397265714,1765162152492,-300.0,7.662e-05,2]
[397265715,1765162152511,-300.0,7.662e-05,2]
[397265717,1765162152531,-300.0,7.662e-05,2]
[397265718,1765162152551,-300.0,7.662e-05,2]
[397265719,1765162152571,-300.0,7.662e-05,2]
[397265721,1765162152591,-600.0,7.814e-05,2]
[397265722,1765162152609,-384.3929574,8.1e-05,2]
[397265724,1765162152628,-370.30205161,8.196e-05,2]
[397265725,1765162152646,-501.23816914,8.222e-05,2]
[397265726,1765162152664,-235.18226476,8.222e-05,2]
[397265728,1765162152683,-500.0,8.222e-05,2]
[397265729,1765162152704,-5092.41964011,8.222e-05,2]
[397265741,1765162154290,-267.65035989,8.222e-05,2]
[397265742,1765162154310,-1023.52,8.222e-05,2]
[397265743,1765162154332,-1246.79,8.222e-05,2]
[397265744,1765162154351,-637.39,8.222e-05,2]
[397265745,1765162154370,-500.0,8.222e-05,2]
[397265746,1765162154390,-500.0,8.222e-05,2]
[397265747,1765162154412,-5879.74,8.222e-05,2]
[397265748,1765162154433,-8.3820602,8.222e-05,2]
[397265991,1765162173087,-150.0,6.799e-05,2]
[397265993,1765162173110,-150.0,7.122e-05,2]
[397265995,1765162173133,-180.87,7.446e-05,2]
[397265996,1765162173157,-156.13,7.77e-05,2]
[397266803,1765162232546,-215.0,7.77e-05,2]
[397266804,1765162232556,-250.0,7.914e-05,2]
[397266805,1765162232565,-149.35401849,8.221e-05,2]
[397267000,1765162238833,-150.0,6.909e-05,2]
[397267001,1765162238844,-150.0,7.238e-05,2]
[397267002,1765162238856,-156.55,7.567e-05,2]
[397267003,1765162238868,-208.73,7.896e-05,2]
[397267004,1765162238880,-150.64598151,8.221e-05,2]
[397267005,1765162238892,-241.50491661,8.221e-05,2]
[397267006,1765162238906,-58.49508339,8.221e-05,2]
[397267007,1765162238918,-1200.0,8.221e-05,2]
[397267009,1765162238929,-179.47190292,8.221e-05,2]
[397267010,1765162238941,-1531.82131265,8.222e-05,2]
[397267012,1765162238955,-320.0,8.222e-05,2]
[397267046,1765162239969,-1224.82266252,8.222e-05,2]
[397267048,1765162239980,-540.61021453,8.222e-05,2]
[397267050,1765162240025,-2812.6137501,8.222e-05,2]
[397267051,1765162240034,-626.42,8.222e-05,2]
[397267053,1765162240044,-4091.35,8.222e-05,2]
[397267054,1765162240055,-1045.72,8.222e-05,2]
[397267056,1765162240065,-662.07,8.222e-05,2]
[397267057,1765162240075,-1636.07,8.222e-05,2]
[397267058,1765162240085,-500.0,8.222e-05,2]
[397267059,1765162240094,-3179.94,8.222e-05,2]
[397267061,1765162240103,-1678.39,8.222e-05,2]
[397267062,1765162240113,-744.22,8.222e-05,2]
[397267063,1765162240122,-1169.03,8.222e-05,2]
[397267065,1765162240131,-500.0,8.222e-05,2]
[397267066,1765162240140,-1469.29,8.222e-05,2]
[397267067,1765162240149,-274.84319457,8.222e-05,2]
[397267068,1765162240161,-500.0,8.223e-05,2]
[397267070,1765162240170,-500.0,8.223e-05,2]
[397267071,1765162240179,-500.0,8.223e-05,2]
[397267072,1765162240188,-500.0,8.223e-05,2]
[397267074,1765162240198,-500.0,8.223e-05,2]
[397267075,1765162240208,-500.0,8.223e-05,2]
[397267076,1765162240217,-500.0,8.223e-05,2]
[397267078,1765162240227,-500.0,8.223e-05,2]
[397267079,1765162240239,-500.0,8.223e-05,2]
[397267080,1765162240249,-541.82,8.223e-05,2]
[397267082,1765162240258,-500.0,8.223e-05,2]
[397267083,1765162240268,-575.9,8.223e-05,2]
[397267084,1765162240277,-500.0,8.223e-05,2]
[397267086,1765162240287,-500.0,8.223e-05,2]
[397267087,1765162240297,-223.22424839,8.223e-05,2]
[397267088,1765162240306,-500.0,8.223e-05,2]
[397267089,1765162240316,-705.28,8.223e-05,2]
[397267091,1765162240325,-501.29724556,8.223e-05,2]
[397267092,1765162240336,-500.0,8.223e-05,2]
[397267093,1765162240346,-500.0,8.223e-05,2]
[397267095,1765162240356,-500.0,8.223e-05,2]
[397267096,1765162240365,-500.0,8.223e-05,2]
[397267097,1765162240377,-500.80137872,8.223e-05,2]
[397267098,1765162240386,-645.74,8.223e-05,2]
[397267100,1765162240396,-657.86,8.223e-05,2]
[397267101,1765162240406,-500.0,8.223e-05,2]
[397267102,1765162240416,-742.46,8.223e-05,2]
[397267103,1765162240425,-500.0,8.223e-05,2]
[397267105,1765162240442,-6132.36,8.223e-05,2]
[397267106,1765162240451,-3627.9,8.223e-05,2]
[397267107,1765162240461,-626.31,8.223e-05,2]
[397267108,1765162240470,-500.0,8.223e-05,2]
[397267110,1765162240485,-636.84,8.223e-05,2]
[397267111,1765162240495,-1015.44,8.223e-05,2]
[397267112,1765162240504,-500.0,8.223e-05,2]
[397267114,1765162240514,-1121.98,8.223e-05,2]
[397267115,1765162240524,-500.0,8.223e-05,2]
[397267116,1765162240534,-920.68,8.223e-05,2]
[397267117,1765162240544,-683.41,8.223e-05,2]
[397267119,1765162240553,-500.0,8.223e-05,2]
[397267120,1765162240563,-500.0,8.223e-05,2]
[397267121,1765162240572,-500.0,8.223e-05,2]
[397267123,1765162240582,-500.0,8.223e-05,2]
[397267124,1765162240591,-893.79,8.223e-05,2]
[397267125,1765162240600,-2253.54,8.223e-05,2]
[397267127,1765162240610,-500.0,8.223e-05,2]
[397267128,1765162240619,-2158.41,8.223e-05,2]
[397267129,1765162240628,-500.0,8.223e-05,2]
[397267131,1765162240637,-1614.32,8.223e-05,2]
[397267132,1765162240646,-500.0,8.223e-05,2]
[397267133,1765162240655,-1334.09,8.223e-05,2]
[397267134,1765162240665,-500.0,8.223e-05,2]
[397267136,1765162240674,-859.55,8.223e-05,2]
[397267137,1765162240684,-500.0,8.223e-05,2]
[397267138,1765162240694,-500.0,8.223e-05,2]
[397267140,1765162240703,-441.14480585,8.223e-05,2]
[397267141,1765162240712,-500.0,8.223e-05,2]
[397267142,1765162240721,-500.0,8.223e-05,2]
[397267144,1765162240731,-976.91,8.223e-05,2]
[397267145,1765162240739,-500.0,8.223e-05,2]
[397267146,1765162240748,-972.22,8.223e-05,2]
[397267147,1765162240758,-657.32,8.223e-05,2]
[397267149,1765162240767,-500.0,8.223e-05,2]
[397267150,1765162240776,-1400.2,8.223e-05,2]
[397267151,1765162240785,-500.0,8.223e-05,2]
[397267153,1765162240794,-504.23,8.223e-05,2]
[397267154,1765162240803,-1087.3,8.223e-05,2]
[397267155,1765162240812,-500.0,8.223e-05,2]
[397267157,1765162240822,-1880.12,8.223e-05,2]
[397267158,1765162240831,-500.0,8.223e-05,2]
[397267159,1765162240840,-500.0,8.223e-05,2]
[397267161,1765162240849,-516.06,8.223e-05,2]
[397267162,1765162240858,-2597.7,8.223e-05,2]
[397267163,1765162240867,-500.0,8.223e-05,2]
[397267164,1765162240876,-191.05858825,8.223e-05,2]
[397267166,1765162240886,-2180.46,8.223e-05,2]
[397267167,1765162240894,-500.0,8.223e-05,2]
[397267168,1765162240903,-500.0,8.223e-05,2]
[397267169,1765162240913,-1196.89,8.223e-05,2]
[397267171,1765162240922,-500.0,8.223e-05,2]
[397267172,1765162240931,-500.0,8.223e-05,2]
[397267173,1765162240940,-500.0,8.223e-05,2]
[397267175,1765162240949,-5885.77883394,8.223e-05,2]
[397267176,1765162240959,-500.0,8.224e-05,2]
[397267177,1765162240969,-812.64,8.224e-05,2]
[397267179,1765162240978,-1493.82,8.224e-05,2]
[397267180,1765162240987,-607.43,8.224e-05,2]
[397267181,1765162240997,-500.0,8.224e-05,2]
[397267182,1765162241007,-609.27,8.224e-05,2]
[397267184,1765162241016,-500.0,8.224e-05,2]
[397267185,1765162241025,-500.0,8.224e-05,2]
[397267186,1765162241036,-600.95,8.224e-05,2]
[397267188,1765162241044,-500.0,8.224e-05,2]
[397267189,1765162241055,-510.26,8.224e-05,2]
[397267190,1765162241065,-160.425,8.224e-05,2]
[397267192,1765162241074,-618.85,8.224e-05,2]
[397267193,1765162241086,-500.0,8.224e-05,2]
[397267194,1765162241096,-500.0,8.224e-05,2]
[397267196,1765162241105,-500.0,8.224e-05,2]
[397267197,1765162241114,-500.0,8.224e-05,2]
[397267198,1765162241123,-500.0,8.224e-05,2]
[397267200,1765162241133,-2012.21,8.224e-05,2]
[397267201,1765162241142,-500.0,8.224e-05,2]
[397267202,1765162241154,-1215.71,8.224e-05,2]
[397267203,1765162241163,-549.07,8.224e-05,2]
[397267205,1765162241172,-500.0,8.224e-05,2]
[397267206,1765162241180,-835.58,8.224e-05,2]
[397267207,1765162241191,-500.0,8.224e-05,2]
[397267209,1765162241201,-953.37,8.224e-05,2]
[397267210,1765162241210,-500.0,8.224e-05,2]
[397267211,1765162241219,-500.0,8.224e-05,2]
[397267212,1765162241228,-500.0,8.224e-05,2]
[397267214,1765162241238,-877.08,8.224e-05,2]
[397267215,1765162241248,-899.45,8.224e-05,2]
[397267216,1765162241257,-642.47,8.224e-05,2]
[397267218,1765162241266,-500.0,8.224e-05,2]
[397267219,1765162241275,-842.95,8.224e-05,2]
[397267220,1765162241284,-479.0,8.224e-05,2]
[397267221,1765162241293,-527.22,8.224e-05,2]
[397267223,1765162241302,-500.0,8.224e-05,2]
[397267224,1765162241311,-1247.09,8.224e-05,2]
[397267225,1765162241320,-500.0,8.224e-05,2]
[397267227,1765162241329,-1577.6,8.224e-05,2]
[397267228,1765162241338,-1087.46,8.224e-05,2]
[397267229,1765162241347,-500.0,8.224e-05,2]
[397267230,1765162241356,-1771.65,8.224e-05,2]
[397267232,1765162241365,-706.08,8.224e-05,2]
[397267233,1765162241374,-501.39382025,8.224e-05,2]
[397267234,1765162241382,-663.47,8.224e-05,2]
[397267235,1765162241391,-169.882069,8.224e-05,2]
[397267237,1765162241400,-646.78,8.224e-05,2]
[397267238,1765162241409,-500.0,8.224e-05,2]
[397267239,1765162241419,-169.620841,8.224e-05,2]
[397267241,1765162241427,-693.18,8.224e-05,2]
[397267242,1765162241437,-500.0,8.224e-05,2]
[397267243,1765162241446,-1817.47,8.224e-05,2]
[397267244,1765162241455,-500.0,8.224e-05,2]
[397267246,1765162241464,-500.0,8.224e-05,2]
[397267247,1765162241473,-500.0,8.224e-05,2]
[397267248,1765162241482,-500.88929194,8.224e-05,2]
[397267250,1765162241493,-500.0,8.224e-05,2]
[397267251,1765162241503,-881.92,8.224e-05,2]
[397267252,1765162241512,-721.22,8.224e-05,2]
[397267253,1765162241521,-1062.88,8.224e-05,2]
[397267255,1765162241530,-500.0,8.224e-05,2]
[397267256,1765162241539,-1786.66,8.224e-05,2]
[397267257,1765162241548,-243.79624412,8.224e-05,2]
[397267259,1765162241557,-563.53,8.224e-05,2]
[397267260,1765162241566,-500.0,8.224e-05,2]
[397267261,1765162241576,-1177.97,8.224e-05,2]
[397267262,1765162241585,-1132.23,8.224e-05,2]
[397267264,1765162241594,-884.58,8.224e-05,2]
[397267265,1765162241603,-500.0,8.224e-05,2]
[397267266,1765162241613,-500.0,8.224e-05,2]
[397267268,1765162241622,-4949.71,8.224e-05,2]
[397267269,1765162241631,-652.07,8.224e-05,2]
[397267270,1765162241640,-500.0,8.224e-05,2]
[397267271,1765162241649,-500.0,8.224e-05,2]
[397267273,1765162241658,-667.85,8.224e-05,2]
[397267274,1765162241668,-654.3,8.224e-05,2]
[397267275,1765162241677,-500.0,8.224e-05,2]
[397267277,1765162241686,-500.0,8.224e-05,2]
[397267278,1765162241695,-2913.16,8.224e-05,2]
[397267279,1765162241704,-1263.95,8.224e-05,2]
[397267280,1765162241714,-500.0,8.224e-05,2]
[397267282,1765162241723,-629.44,8.224e-05,2]
[397267283,1765162241732,-536.81,8.224e-05,2]
[397267284,1765162241741,-500.0,8.224e-05,2]
[397267286,1765162241750,-500.0,8.224e-05,2]
[397267287,1765162241759,-500.0,8.224e-05,2]
[397267288,1765162241768,-500.0,8.224e-05,2]
[397267290,1765162241777,-500.0,8.224e-05,2]
[397267291,1765162241787,-1130.36,8.224e-05,2]
[397267292,1765162241795,-947.89,8.224e-05,2]
[397267293,1765162241805,-500.0,8.224e-05,2]
[397267295,1765162241814,-500.0,8.224e-05,2]
[397267296,1765162241824,-505.87,8.224e-05,2]
[397267297,1765162241833,-3488.56,8.224e-05,2]
[397267299,1765162241842,-1032.11,8.224e-05,2]
[397267300,1765162241851,-1447.86,8.224e-05,2]
[397267301,1765162241860,-1632.39,8.224e-05,2]
[397267302,1765162241869,-1029.02,8.224e-05,2]
[397267304,1765162241877,-3342.47,8.224e-05,2]
[397267305,1765162241886,-1327.07,8.224e-05,2]
[397267306,1765162241894,-864.35,8.224e-05,2]
[397267307,1765162241903,-1260.88,8.224e-05,2]
[397267308,1765162241912,-500.22609049,8.224e-05,2]
[397267309,1765162241921,-901.64,8.224e-05,2]
[397267310,1765162241930,-500.0,8.224e-05,2]
[397267311,1765162241939,-550.72,8.224e-05,2]
[397267312,1765162241947,-5784.38,8.224e-05,2]
[397267313,1765162241956,-2139.95,8.224e-05,2]
[397267314,1765162241964,-500.0,8.224e-05,2]
[397267315,1765162241973,-500.0,8.224e-05,2]
[397267316,1765162241982,-500.0,8.224e-05,2]
[397267317,1765162241991,-2487.09,8.224e-05,2]
[397267318,1765162242000,-699.0,8.224e-05,2]
[397267319,1765162242008,-500.0,8.224e-05,2]
[397267320,1765162242017,-2240.48,8.224e-05,2]
[397267321,1765162242026,-1794.84,8.224e-05,2]
[397267322,1765162242035,-845.7,8.224e-05,2]
[397267323,1765162242043,-1370.82,8.224e-05,2]
[397267324,1765162242052,-500.0,8.224e-05,2]
[397267325,1765162242061,-9245.05,8.224e-05,2]
[397267326,1765162242070,-694.22,8.224e-05,2]
[397267327,1765162242079,-500.0,8.224e-05,2]
[397267328,1765162242087,-1079.91,8.224e-05,2]
[397267329,1765162242096,-662.57,8.224e-05,2]
[397267330,1765162242105,-1057.4,8.224e-05,2]
[397267331,1765162242113,-500.0,8.224e-05,2]
[397267332,1765162242122,-19468.01,8.224e-05,2]
[397267333,1765162242131,-3163.56,8.224e-05,2]
[397267334,1765162242139,-500.0,8.224e-05,2]
[397267335,1765162242148,-409541.53909655,8.225e-05,2]
[397267336,1765162242164,-8246.18349024,8.225e-05,2]
[397267337,1765162242174,-3520.04,8.225e-05,2]
[397267339,1765162242186,-1031.999995,8.225e-05,2]
[397267421,1765162244746,-1181.34538107,8.225e-05,2]
[397267422,1765162244758,-504.32018305,8.225e-05,2]
[397267436,1765162245189,-2022.39,8.223e-05,2]
[397267438,1765162245200,-500.0,8.224e-05,2]
[397267439,1765162245209,-500.0,8.224e-05,2]
[397267440,1765162245219,-841.85299833,8.225e-05,2]
[397267452,1765162245805,-18240.0,8.225e-05,2]
[397267454,1765162245841,-582.26018707,8.225e-05,2]
[397272197,1765162382272,229.79,5.1e-05,2]
[397272208,1765163229154,-206.23884684,6.901e-05,2]
[397272209,1765163231079,-2.76115316,6.901e-05,2]
[397272210,1765163231100,-285.82604266,6.93e-05,2]
[397272211,1765163231124,-150.0,7.124e-05,2]
[397272212,1765163231146,-287.16,7.772e-05,2]
[397272213,1765163231167,-63.12673469,7.845e-05,2]
[397272214,1765163234099,-791.04162136,7.845e-05,2]
[397272217,1765163344836,250.0,9.998e-05,3]
[397272218,1765163349174,-150.0,7.132e-05,2]
[397272219,1765163349195,-304.36683957,7.513e-05,2]
[397272220,1765163349215,-547.86031123,7.513e-05,2]
[397272221,1765163349236,-972.99991275,7.513e-05,2]
[397272222,1765163349258,-276.03,7.781e-05,2]
[397272223,1765163349277,-1200.0,7.907e-05,2]
[397272224,1765163349298,-300.0,8.116e-05,2]
[397272225,1765163349319,-500.0,8.117e-05,2]
[397272226,1765163349340,-500.0,8.117e-05,2]
[397272227,1765163349358,-261.16734906,8.117e-05,2]
[397272228,1765163349378,-573.81508221,8.117e-05,2]
[397272229,1765163349398,-500.0,8.117e-05,2]
[397272230,1765163349418,-500.0,8.117e-05,2]
[397272231,1765163349438,-219.82648541,8.117e-05,2]
[397272232,1765163364084,-150.0,7.133e-05,2]
[397272233,1765163364108,-232.93282484,7.781e-05,2]